Cogmind - Beta 12 @@@ ROGUE MODE // 2023.06.25 @ 14:53:06 Player: Nicolas Result: Destroyed by Y-45 Defender with Beam Rifle Performance ------------- Evolutions (2) 1000 Regions Visited (6) 1200 Robots Destroyed (26) 130 Value Destroyed (620) 620 Prototype IDs (0) 0 Alien Tech Used (0) 0 Bonus (59) 59 TOTAL SCORE: 3009 Bonus ------- Follower Combat Kills 101 Friendly Fire -42 Cogmind --------- Core Integrity 0/550 Matter 244/300 Energy 100/100 System Corruption 0% Temperature Danger (406) Movement Core (200) Ox3 Location -8/Storage Parts ------- > --- POWER (2) -------- (None) > --- PROPULSION (3) --- (None) > --- UTILITY (3) ------ Medium Storage Unit > --- WEAPON (3) ------- (None) > --- INVENTORY (10) --- Ion Engine Improved Ion Engine Aluminum Leg Heat Sink Improved Sensor Array Peak State ------------ > --- POWER ------------ Improved Ion Engine Light Deuterium Engine > --- PROPULSION ------- Improved Hover Unit Improved Hover Unit > --- UTILITY ---------- Medium Storage Unit Hardened Light Armor Plating Improved Light Armor Plating > --- WEAPON ----------- Medium Laser Pulse Rifle Light Assault Rifle > --- INVENTORY -------- Ion Engine Improved Ion Engine Aluminum Leg Heat Sink Improved Sensor Array Small Laser [Rating: 20] Favorites ----------- Power Ion Engine Engine Ion Engine Propulsion Compact Wheel Leg Aluminum Leg Wheel Compact Wheel Hover Unit Improved Hover Unit Utility Medium Storage Unit Device Improved Heat Sink Storage Medium Storage Unit Protection Hardened Light Armor Plating Weapon Medium Laser Energy Gun Medium Laser Ballistic Gun Assault Rifle Build | -11 -10 -10 -10 -9 -8 -8 ------- Run | Jun Mat Min Exi Min Mat Sto Slots Evolved 4 | . . . . . 4 . Power 1 | . . . . . 1 . Propulsion 1 | . . . . . 1 . Utility 1 | . . . . . 1 . Weapon 1 | . . . . . 1 . Parts Attached 32 | 6 4 2 . . 11 9 Power 10 | 1 1 2 . . 3 3 Engine 10 | 1 1 2 . . 3 3 Core . | . . . . . . . Reactor . | . . . . . . . Propulsion 5 | 2 . . . . 1 2 Treads . | . . . . . . . Leg 1 | . . . . . 1 . Wheel 2 | 2 . . . . . . Hover 2 | . . . . . . 2 Flight . | . . . . . . . Utility 8 | 1 2 . . . 3 2 Device 2 | . . . . . 1 1 Storage 2 | 1 1 . . . . . Processor . | . . . . . . . Hackware . | . . . . . . . Protection 4 | . 1 . . . 2 1 Artifact . | . . . . . . . Weapon 9 | 2 1 . . . 4 2 Energy Gun 6 | 2 . . . . 3 1 Energy Cannon . | . . . . . . . Ballistic Gun 3 | . 1 . . . 1 1 Ballistic Cannon . | . . . . . . . Launcher . | . . . . . . . Special Weapon . | . . . . . . . Impact Weapon . | . . . . . . . Slashing Weapon . | . . . . . . . Piercing Weapon . | . . . . . . . Special Melee Weapon . | . . . . . . . Unidentified Prototypes . | . . . . . . . Parts Lost 10 | . . . . . 1 9 Power 2 | . . . . . . 2 Propulsion 3 | . . . . . 1 2 Utility 2 | . . . . . . 2 Weapon 3 | . . . . . . 3 Highest Loss Streak 9 | . . . . . 1 9 To Critical Strikes 1 | . . . . . . 1 Average Slot Usage (%) 90 | . 95 100 100 100 78 87 Engine 16 | . 14 14 14 14 18 18 Leg 1 | . . . . . 5 . Wheel 13 | . 28 28 28 28 4 . Hover 4 | . . . . . . 16 Device 1 | . . . . . 5 . Storage 11 | . 14 14 14 14 9 9 Protection 13 | . 9 14 14 14 9 17 Energy Gun 17 | . 24 14 14 14 20 17 Ballistic Gun 9 | . 3 14 14 14 6 9 Naked Turns . | . . . . . . . Heaviest Build 37 | 11 24 24 24 24 33 37 Greatest Support 32 | 32 32 32 32 32 32 14 Greatest Overweight (x) 9 | . . . . . 9 4 Average Overweight (x) . | . . . . . 1 2 Largest Inventory Capacity 10 | 8 10 10 10 10 10 10 Average Capacity 9 | 7 8 10 10 10 10 10 Most Carried 7 | 2 5 6 6 5 4 7 Average Carried 4 | 1 3 4 5 5 2 4 Final Capacity 10 | 8 10 10 10 10 10 10 Final Carried 5 | 2 4 5 5 5 3 5 Class Distribution -------------------- 50% | Mutant 24% | Scavenger-Tank 23% | Tank Dominant Class ---------------- Mutant | -10/Materials Mutant | -10/Mines Mutant | -10/Exiles Mutant | -9/Mines Tank | -8/Materials Scavenger-Tank | -8/Storage Resources | -11 -10 -10 -10 -9 -8 -8 ----------- Run | Jun Mat Min Exi Min Mat Sto Matter Collected 576 | 151 129 63 . . 124 109 Remotely . | . . . . . . . Salvage Created 754 | . 43 127 . . 250 334 Parts 55 | . 5 8 . . 9 33 Haulers Intercepted . | . . . . . . . Recyclers Shooed 1 | . . . . . 1 . Parts Field Recycled . | . . . . . . . Retrieved Matter . | . . . . . . . Parts Self-Destructed . | . . . . . . . Prevented . | . . . . . . . Kills | -11 -10 -10 -10 -9 -8 -8 ------- Run | Jun Mat Min Exi Min Mat Sto Combat Hostiles Destroyed 21 | . 3 4 . . 8 6 Guns 21 | . 3 4 . . 8 6 Classes Destroyed 6 | . 1 1 . . 1 3 Worker 1 | . . . . . . 1 Builder 2 | . . . . . . 2 Watcher 2 | . . . . . . 2 Swarmer 11 | . 3 2 . . 3 3 Grunt 6 | . . 2 . . 4 . Sentry 4 | . . . . . 1 3 Best Kill Streak 5 | . 3 2 . . 5 4 Combat Bots Only 5 | . 3 2 . . 5 3 Max Kills in Single Turn 3 | . 2 1 . . 3 2 Gunslinging 1 | . . . . . 1 . Exploded . | . . . . . . . Melee . | . . . . . . . Uniques/NPCs Destroyed . | . . . . . . . Combat | -11 -10 -10 -10 -9 -8 -8 -------- Run | Jun Mat Min Exi Min Mat Sto Damage Taken 1822 | . 25 226 . 7 344 1220 Core 609 | . 9 49 . . 103 448 Absorbed by Shields . | . . . . . . . Core Remaining (%) 88 | 100 . . . 76 . . Volleys Fired 74 | . 2 11 . . 20 41 Largest 3 | . 2 2 . . 3 3 Hottest 153 | . 90 70 . . 153 133 Shots Fired 152 | . 4 22 . . 56 70 Gun 152 | . 4 22 . . 56 70 Cannon . | . . . . . . . Launcher . | . . . . . . . Special . | . . . . . . . Kinetic 55 | . . 11 . . 3 41 Thermal 97 | . 4 11 . . 53 29 Explosive . | . . . . . . . Electromagnetic . | . . . . . . . Robot Hit Streak 11 | . 1 3 . . 11 11 Robot Miss Streak 4 | . 1 1 . . 2 4 Penetration Max . | . . . . . . . Secondary Targets 4 | . . 2 . . 1 1 Max Gunslinging Chain 1 | . . 1 . . 1 1 Shots Hit Robots 97 | . 2 15 . . 34 46 Core Hits 46 | . 3 7 . . 16 20 Critical Kills . | . . . . . . . Critical Parts Destroyed . | . . . . . . . Critical Strikes 1 | . . . . . 1 . Burn 1 | . . . . . 1 . Melee Attacks . | . . . . . . . Impact . | . . . . . . . Slashing . | . . . . . . . Piercing . | . . . . . . . Sneak Attacks . | . . . . . . . Combat Hostiles . | . . . . . . . Follow-up Attacks . | . . . . . . . Damage Inflicted 1363 | . 47 185 . . 499 632 Guns 1360 | . 47 185 . . 496 632 Cannons . | . . . . . . . Explosions . | . . . . . . . Melee . | . . . . . . . Ramming 3 | . . . . . 3 . Kinetic 436 | . . 59 . . 37 340 Thermal 924 | . 47 126 . . 459 292 Explosive . | . . . . . . . Electromagnetic . | . . . . . . . Impact . | . . . . . . . Slashing . | . . . . . . . Piercing . | . . . . . . . Highest Corruption . | . . . . . . . Average Corruption . | . . . . . . . Corruption Purged . | . . . . . . . Corruption Blocked . | . . . . . . . Overload Shots . | . . . . . . . Overflow Damage . | . . . . . . . Projectiles . | . . . . . . . Explosions . | . . . . . . . Melee . | . . . . . . . Knockbacks . | . . . . . . . Impact . | . . . . . . . Kinetic . | . . . . . . . Secondary . | . . . . . . . Self-Inflicted Damage . | . . . . . . . Shots . | . . . . . . . Rammed . | . . . . . . . Targets Rammed 1 | . . . . . 1 . Kicked 1 | . . . . . 1 . Crushed . | . . . . . . . Highest Temperature 551 | . 90 309 . . 505 551 Average Temperature 173 | . 49 139 . . 223 157 Received Heat Transfer 621 | . . 117 . . 180 324 Effects 27 | . . . . . 17 10 Shutdowns 8 | . . . . . 4 4 Energy Bleed 3 | . . . . . 2 1 Interference 4 | . . . . . 2 2 Matter Decay 1 | . . . . . . 1 Short Circuit 3 | . . . . . 3 . Damage (major) 6 | . . . . . 6 . Damage (core) 2 | . . . . . . 2 Siege Activations . | . . . . . . . Robots Corrupted . | . . . . . . . Combat Hostiles . | . . . . . . . Parts Fried . | . . . . . . . Impact Corruptions . | . . . . . . . Robots Melted . | . . . . . . . Combat Hostiles . | . . . . . . . Parts Melted 3 | . . . . . 3 . Heat Transferred 2460 | . 124 370 . . 1188 778 Parts Sabotaged . | . . . . . . . Parts Stolen . | . . . . . . . Parts Stripped . | . . . . . . . Power Chain Reactions . | . . . . . . . Missiles Intercepted . | . . . . . . . Alert | -11 -10 -10 -10 -9 -8 -8 ------- Run | Jun Mat Min Exi Min Mat Sto Peak Influence 360 | . 85 153 . . 324 360 Initial 136 | . . 33 . . . 136 Average 171 | . 40 102 . . 201 238 Maximum Alert Level 1 | . . . . . 1 1 Low Security (%) 49 | 100 100 100 . 100 32 25 Level 1 50 | . . . . . 67 74 Level 2 . | . . . . . . . Level 3 . | . . . . . . . Level 4 . | . . . . . . . Level 5 . | . . . . . . . High Security . | . . . . . . . Max Security . | . . . . . . . Squads Dispatched 2 | . . . . . 1 1 Investigation 1 | . . . . . 1 . Extermination . | . . . . . . . Reinforcement . | . . . . . . . Assault . | . . . . . . . Garrison 1 | . . . . . . 1 Intercept . | . . . . . . . Searches Triggered . | . . . . . . . Construction Impeded . | . . . . . . . Haulers Reinforced . | . . . . . . . Active Scanning Responses . | . . . . . . . Cargo Convoy Interrupts . | . . . . . . . Stealth | -11 -10 -10 -10 -9 -8 -8 --------- Run | Jun Mat Min Exi Min Mat Sto Distress Signals . | . . . . . . . Communications Jammed . | . . . . . . . Distress Signals . | . . . . . . . Times Spotted 37 | . 4 5 . 2 14 12 Peak Tracking Total 7 | . 3 3 . 2 7 4 Tactical Retreats 4 | . . 1 . . 2 1 Traps | -11 -10 -10 -10 -9 -8 -8 ------- Run | Jun Mat Min Exi Min Mat Sto Traps Triggered 1 | . . . . . 1 . Indirectly . | . . . . . . . Trap Hack Attempts . | . . . . . . . Triggered . | . . . . . . . Disarmed . | . . . . . . . Reprogrammed . | . . . . . . . Reused . | . . . . . . . Traps Extracted . | . . . . . . . Installed . | . . . . . . . Triggered . | . . . . . . . Machines | -11 -10 -10 -10 -9 -8 -8 ---------- Run | Jun Mat Min Exi Min Mat Sto Machines Disabled . | . . . . . . . Max in Single Turn . | . . . . . . . Machines Repaired . | . . . . . . . Machines Sabotaged . | . . . . . . . Overloaded Fab Kills . | . . . . . . . Hacking | -11 -10 -10 -10 -9 -8 -8 --------- Run | Jun Mat Min Exi Min Mat Sto Machines Accessed 5 | . . . 2 . . 3 Terminals 3 | . . . . . . 3 Fabricators . | . . . . . . . Repair Stations . | . . . . . . . Recycling Units . | . . . . . . . Scanalyzers . | . . . . . . . Garrison Access . | . . . . . . . Total Hacks 35 | . . . 32 . . 3 Successful 32 | . . . 32 . . . Failed 3 | . . . . . . 3 Catastrophic 1 | . . . . . . 1 Database Lockouts . | . . . . . . . Manual . | . . . . . . . Terminals 3 | . . . . . . 3 Fabricators . | . . . . . . . Repair Stations . | . . . . . . . Recycling Units . | . . . . . . . Scanalyzers . | . . . . . . . Garrison Access . | . . . . . . . Terminal Hacks 32 | . . . 32 . . . Record 32 | . . . 32 . . . Fabricator Hacks . | . . . . . . . Repair Station Hacks . | . . . . . . . Recycling Unit Hacks . | . . . . . . . Scanalyzer . | . . . . . . . Garrison Access Hacks . | . . . . . . . Unauthorized Hacks . | . . . . . . . Terminals . | . . . . . . . Fabricators . | . . . . . . . Repair Stations . | . . . . . . . Recycling Units . | . . . . . . . Scanalyzers . | . . . . . . . Garrison Access . | . . . . . . . Data Cores Recovered . | . . . . . . . Used . | . . . . . . . Hacking Detections . | . . . . . . . Full Trace Events . | . . . . . . . Feedback Events . | . . . . . . . Feedback Blocked . | . . . . . . . Robot Schematics Acquired . | . . . . . . . Robots Built . | . . . . . . . Authchips . | . . . . . . . Time . | . . . . . . . Total Robot Build Rating . | . . . . . . . Part Schematics Acquired . | . . . . . . . Parts Built . | . . . . . . . Authchips . | . . . . . . . Time . | . . . . . . . Total Part Build Rating . | . . . . . . . Parts Repaired . | . . . . . . . Time . | . . . . . . . Parts Recycled . | . . . . . . . Recycled Matter . | . . . . . . . Retrieved Matter . | . . . . . . . Retrieved Components . | . . . . . . . Parts Scanalyzed . | . . . . . . . Part Schematics Acquired . | . . . . . . . Parts Damaged . | . . . . . . . Bothacking | -11 -10 -10 -10 -9 -8 -8 ------------ Run | Jun Mat Min Exi Min Mat Sto Used RIF Installer . | . . . . . . . Robots Hacked . | . . . . . . . Non-combat . | . . . . . . . Combat . | . . . . . . . Robot Hacks Applied . | . . . . . . . Relay Couplers Released . | . . . . . . . Fabnet Peak Effective % . | . . . . . . . Robots Rewired . | . . . . . . . Allies Hacked . | . . . . . . . Hacks Repelled . | . . . . . . . Allies | -11 -10 -10 -10 -9 -8 -8 -------- Run | Jun Mat Min Exi Min Mat Sto Total Allies 2 | . . . . 2 . . Largest Group 2 | . . . . 2 1 . Highest-Rated Group 41 | . . . . 41 31 . Highest-Rated Ally 31 | . . . . 31 31 . Total Orders . | . . . . . . . Ally Attacks 10 | . . . . . 10 . Total Damage 163 | . . . . . 163 . Kills 3 | . . . . . 3 . Allies Corrupted . | . . . . . . . Allies Melted . | . . . . . . . Intel | -11 -10 -10 -10 -9 -8 -8 ------- Run | Jun Mat Min Exi Min Mat Sto Robot Analysis Total . | . . . . . . . Derelict Logs Recovered . | . . . . . . . Drone Launches . | . . . . . . . Drone Recoveries . | . . . . . . . Exploration | -11 -10 -10 -10 -9 -8 -8 ------------- Run | Jun Mat Min Exi Min Mat Sto Turns Passed 1497 | 42 160 109 354 26 376 430 Spaces Moved 930 | 33 136 68 353 27 144 169 Core 7 | 4 . . . . 2 1 Treads . | . . . . . . . Legs 71 | . . . . . 70 1 Wheels 685 | 29 136 68 353 27 72 . Hover 167 | . . . . . . 167 Flight . | . . . . . . . Fastest Speed 50 | 50 100 100 100 100 100 120 Average Speed 130 | 93 100 100 100 100 204 179 Slowest Speed 500 | 100 100 100 100 100 500 300 Overloaded Moves . | . . . . . . . Propulsion Burnouts . | . . . . . . . Robots Hopped . | . . . . . . . Cave-ins Triggered . | . . . . . . . Exploration Rate (%) 28 | 3 36 15 86 14 15 27 Regions Visited 6 Branch Regions 4 Pre-discovered Areas 1 | . . . 1 . . . Known Exits Taken . | . . . . . . . Unknown Exits Taken 6 | 1 1 1 1 1 1 . Scrap Searched . | . . . . . . . Spaces Dug . | . . . . . . . Terrain Destroyed . | . . . . . . . Melee . | . . . . . . . Projectile . | . . . . . . . AOE . | . . . . . . . Terrain Rammed . | . . . . . . . Walls Destroyed . | . . . . . . . Machines Disabled . | . . . . . . . Actions | -11 -10 -10 -10 -9 -8 -8 --------- Run | Jun Mat Min Exi Min Mat Sto Total 1081 | 41 155 86 354 26 182 237 Wait 26 | . 9 4 . . 2 11 Move 924 | 32 135 67 352 26 143 169 Hop . | . . . . . . . Pick Up 12 | 3 3 1 1 . 1 3 Fast Attach 8 | 5 . . . . 1 2 Attach 7 | 1 1 . . . 4 1 Detach 1 | . . . . . . 1 Swap 17 | . 3 2 . . 6 6 Drop 11 | . 2 1 1 . 4 3 Fire 74 | . 2 11 . . 20 41 Melee . | . . . . . . . Ram . | . . . . . . . Kick 1 | . . . . . 1 . Crush . | . . . . . . . Escape Stasis . | . . . . . . . Rewire . | . . . . . . . Trap . | . . . . . . . Miscellaneous . | . . . . . . . Route ------- -11/Junkyard -10/Materials -10/Mines -10/Exiles -9/Mines -8/Materials -8/Storage History --------- Turn | Location | Event 22 | -11/Junkyard | Discovered new exit (range 16) 43 | -11/Junkyard | Entered Materials 196 | -10/Materials | Discovered new exit (range 7) 203 | -10/Materials | Entered Mines 308 | -10/Mines | Deemed a non-threat by the Exiles lab entrance 308 | -10/Mines | Discovered new exit (range 5) 312 | -10/Mines | Entered Exiles 314 | -10/Exiles | Build established: Mutant 339 | -10/Exiles | Met 8R-AWN 359 | -10/Exiles | Met EX-HEX 387 | -10/Exiles | Met EX-BIN 470 | -10/Exiles | Met EX-DEC 514 | -10/Exiles | Visited The Gauntlet 626 | -10/Exiles | Learned location of Zion (-7) 655 | -10/Exiles | Discovered new exit (range 12) 666 | -10/Exiles | Entered Mines 682 | -9/Mines | Discovered new exit (range 11) 692 | -9/Mines | Entered Materials 692 | -8/Materials | Accompanied by 1 ally 692 | -8/Materials | Evolved 4 slots: Power x1, Propulsion x1, Utility x1, Weapon x1 697 | -8/Materials | Led the pair of lost Derelicts to an unsafe place 908 | -8/Materials | Discovered new exit (range 4) 1068 | -8/Materials | Entered Storage 1423 | -8/Storage | Build established: Scavenger-Tank 1462 | -8/Storage | Garrison activated, responded to threat 1490 | -8/Storage | Core integrity fell below 50% 1492 | -8/Storage | Core integrity fell below 20% 1498 | -8/Storage | Destroyed by Y-45 Defender with Beam Rifle Last Messages --------------- 01486_ K-01 Serf collects debris. 01487_ Hrd. Light Armor Plating destroyed. 01487_ Critical hit (Burn: +37). 01489_ K-01 Serf collects debris. 01490_ Overheating: Core damaged (-110). 01491_ Power failure, Lgt. Deuterium Engine shutdown. 01491_ Overheating: System interference. 01491_ Lgt. Assault Rifle temporarily disabled. 01491_ Med. Laser temporarily disabled. 01491_ K-01 Serf destroyed. 01492_ Overheating: Core damaged (-99). 01493_ K-01 Serf collects debris. 01494_ Med. Laser destroyed. 01494_ Lgt. Assault Rifle destroyed. 01494_ Imp. Ion Engine destroyed. 01495_ K-01 Serf collects debris. 01495_ Critical hit (Destroy). 01495_ Lgt. Deuterium Engine destroyed. 01497_ Imp. Hover Unit destroyed. 01498_ Critical hit (Burn: +37). Map ----- +----------------------------------------------------+ | ?????????????????????????????????????????? | | ?????????????????????????????????????????? | | ?????????????????????????????????????????? | | ?????????????????????????????????????????? | | ?????????????????????????????????????????? | | ?????????????????????????????????????????? | | ????????????????????????? ?????????????? | | ???????????????????????? ?????????????? | | ???????????????????????? ?????????????? | | ????????????????????????# #????????????? | | ????????????????????????#[ #????????????? | | ????????????????????????#YY #????????????? | | ????????????????????????#[ Y#????????????? | | ????????????????????????# +????????????? | | ????????????????????????# #????????????? | | ????????????????????????# #????????????? | | ????????????????????????# #????????????? | | ????????????????????????# #????????????? | | ????????????????????????# #????????????? | | ?????????????????????####* #????????????? | | ?????????????????????# #% #????????????? | | ?????????????????????" #=%=#????????????? | | ?????????????????????" #%! #????????????? | | ?????????????????????" +[ #????????????? | | ?????????????????????#T##[ #????????????? | | ?????????????????????####@ #????????????? | | ????????????????????????# #????????????? | | ????????????????????????# #????????????? | | ######################### # "[[#???????? | | %! = + [[#???????? | | ######## = %= # ???????????? | | ???????# % ###??????????? | | ???????######+#########+###+#????????????? | | ???????????? ???????????? #????????????? | | ???????????? ????????????"#????????????? | | ???????????#" "#???????????"?????????????? | | ???????????? ??????????????????????????? | | ???????????? ??????????????????????????? | | ???????????? [??????????????????????????? | | ???????????? [ ??????????????????????????? | | ????????????###??????????????????????????? | | ?????????????????????????????????????????? | | ?????????????????????????????????????????? | | ?????????????????????????????????????????? | | ?????????????????????????????????????????? | | ?????????????????????????????????????????? | | ?????????????????????????????????????????? | | ?????????????????????????????????????????? | | ?????????????????????????????????????????? | | ?????????????????????????????????????????? | +----------------------------------------------------+ Best States ------------- Heat Dissipation 45 Energy Generation 21 Energy Capacity 415 Matter Stores 300 Matter Capacity 300 Sight Range 16 Terrain Scan Density 10 Armor Coverage 300 Evasion (%) 40 Item Schematics ----------------- None Robot Schematics ------------------ None Fabricated ------------ Nothing Alien Tech Used ----------------- None Achievements -------------- Librarian Challenges ------------ None Game ------ Seed GreatSigixWell Manual? 0 Play Time 00:28:19 Cumulative 7.2 hours Start 2023.06.25 @ 10:29:02 End 2023.06.25 @ 14:53:06 Sessions 2 Manual Loads 0 Difficulty Rogue Special Mode None Game No. 26 Rogue 26 Adventurer 0 Explorer 0 Win Type - Total 0 Types 0/0/0/0/0/0/0/0/0 Lore% 7 Gallery% 11 Achievement% 12 Wizard Run 0 Options --------- ASCII 0 Keyboard 0 Movement Numpad Keybinds 0 Fullscreen 1 Font 36/Smallcaps Map View 76x50 Tactical HUD 1 Map Filters NONE Filters NONE Steam 1 RUN: 277c2acb-22fe-4db4-a472-5347adbe69e8